fUST/lending_fUST_20240421
["ID","MTS","AMOUNT","RATE_DAILY","PERIOD"]
[323139136,1713707308314,385.87436612,0.00019627,2]
[323139137,1713707309639,222.53353118,0.00019627,2]
[323139138,1713707310441,180.25566942,0.00019627,2]
[323139139,1713707326314,385.87436612,0.00019627,2]
[323139140,1713707327512,4963.38135733,0.00019627,2]
[323139141,1713707327671,692.47153713,0.00019627,2]
[323139142,1713707328429,180.25566942,0.00019627,2]
[323139143,1713707344313,385.87436612,0.00019627,2]
[323139144,1713707348440,174.54815906,0.00019627,2]
[323139145,1713707349561,692.47153713,0.00019627,2]
[323139146,1713707362643,451.81772803,0.00019627,3]
[323139147,1713707365556,692.47153713,0.00019627,2]
[323139148,1713707366412,234.25172496,0.00019627,2]
[323139180,1713707381651,649.66555694,0.00019627,2]
[323139486,1713707402590,451.81772803,0.00019627,3]
[323139527,1713707432677,-329.5063646,0.00020272,2]
[323139529,1713707432687,-211.98635091,0.00020273,2]
[323139531,1713707432698,-808.15085291,0.00020274,2]
[323139533,1713707432707,-691.48714203,0.00020274,2]
[323139535,1713707432717,-551.63533714,0.00020275,2]
[323139537,1713707432727,-300.0,0.00020276,2]
[323139539,1713707432736,-300.0,0.00020276,2]
[323139541,1713707432746,-5799.27009605,0.00020277,2]
[323139543,1713707432755,-1247.0001436,0.00020294,2]
[323139545,1713707432765,-17581.56346869,0.00020567,2]
[323139547,1713707432776,-918.14765376,0.00020689,2]
[323139549,1713707432785,-3286.06426541,0.000207,3]
[323140228,1713707448595,451.81772803,0.00019627,3]
[323141056,1713707530582,451.93241924,0.00019627,3]
[323141057,1713707537580,414.80025629,0.00019627,2]
[323141058,1713707548595,451.93241924,0.00019627,3]
[323141065,1713707568585,451.93241924,0.00019627,3]
[323141066,1713707594632,451.93241924,0.00019627,3]
[323141067,1713707599469,288.1062039,0.00019626,2]
[323141069,1713707614610,508.94243695,0.00019627,3]
[323141079,1713707641891,203.0,0.00027699,120]
[323141088,1713707672131,1167.02964958,0.000176,2]
[323141092,1713707687153,105526.02127758,0.00027699,120]
[323141103,1713707888669,1735.21598946,0.000268,120]
[323141112,1713708425544,692.0,0.000241,35]
[323141113,1713708427320,692.0,0.0002409,35]
[323141114,1713708429131,692.0,0.0002408,35]
[323141115,1713708501907,250.0,0.00019283,2]
[323141117,1713708576357,190.4583051,0.00019657,2]
[323141187,1713708637959,-154.84515485,0.00020262,2]
[323141188,1713708637968,-691.48714203,0.00020262,2]
[323141189,1713708637978,-193.52697819,0.00020263,2]
[323141190,1713708637988,-361.87683553,0.00020264,2]
[323141191,1713708637999,-1550.19478705,0.00020264,2]
[323141192,1713708638009,-808.15085291,0.00020265,2]
[323141193,1713708638020,-883.42675349,0.00020265,2]
[323141194,1713708638030,-31285.28113,0.00020265,2]
[323141195,1713708638041,-300.0,0.00020265,2]
[323141196,1713708638051,-300.0,0.00020265,2]
[323141197,1713708638062,-1577.16491941,0.00020266,2]
[323141198,1713708638072,-241.42272,0.00020266,2]
[323141199,1713708638081,-1676.83616858,0.00020266,2]
[323141200,1713708638090,-157.69768027,0.00020266,2]
[323141201,1713708638100,-156.9712442,0.00020266,2]
[323141202,1713708638109,-564.30547091,0.00020267,2]
[323141203,1713708638118,-526.14121076,0.00020267,2]
[323141204,1713708638128,-521.29976744,0.00020267,2]
[323141205,1713708638137,-2586.79174796,0.00020267,2]
[323141206,1713708638146,-1201.72825929,0.00020268,2]
[323141207,1713708638155,-469.43131527,0.00020268,2]
[323141208,1713708638165,-468.2653797,0.00020268,2]
[323141209,1713708638174,-329.5063646,0.00020269,2]
[323141210,1713708638183,-938.99010155,0.00020292,2]
[323141211,1713708638192,-197.9509057,0.00020298,2]
[323141212,1713708638201,-4918.29493339,0.000207,3]
[323141213,1713708638210,-150.0,0.0002088,2]
[323141214,1713708638219,-540.25761675,0.00021,7]
[323141215,1713708638230,-153.0,0.00021,2]
[323141216,1713708638239,-3726.8420291,0.00021,2]
[323141593,1713708645976,-1877.41559284,0.00020261,2]
[323141596,1713708645990,-4195.43608348,0.00021,2]
[323141598,1713708646005,-153.0,0.000211,2]
[323141601,1713708646020,-153.0,0.000211,2]
[323141603,1713708646035,-203.4958838,0.000211,2]
[323141606,1713708646046,-153.0,0.000211,2]
[323141608,1713708646061,-153.0,0.000211,2]
[323141610,1713708646076,-153.0,0.000211,2]
[323141613,1713708646089,-1775.61272308,0.000211,2]
[323141615,1713708646104,-153.0,0.000211,2]
[323141617,1713708646116,-153.0,0.000211,2]
[323141620,1713708646132,-203.4958838,0.000211,2]
[323141622,1713708646146,-203.4958838,0.000211,2]
[323141625,1713708646161,-969.77789924,0.00021455,2]
[323141627,1713708646174,-4066.0774913,0.00021633,2]
[323141630,1713708646190,-249.71,0.00021798,2]
[323141632,1713708646205,-409.49278409,0.00021798,2]
[323141635,1713708646222,-301.08341595,0.00021799,2]
[323141637,1713708646237,-318.27839548,0.00021813,2]
[323141639,1713708646250,-500.15168032,0.00021813,2]
[323141641,1713708646261,-743.6869419,0.00021813,2]
[323141644,1713708646274,-1674.52743334,0.00021813,2]
[323141646,1713708646289,-300.89684472,0.00021813,2]
[323141648,1713708646303,-1089.6608071,0.00021813,2]
[323141651,1713708646315,-2126.51224034,0.00021813,2]
[323141653,1713708646327,-470.77885512,0.00021813,2]
[323141655,1713708646342,-155.11667114,0.00021813,2]
[323141657,1713708646353,-304.93752392,0.00021813,2]
[323141659,1713708646366,-619.08041203,0.00021813,2]
[323141662,1713708646379,-532.75514799,0.00021813,2]
[323141664,1713708646392,-5791.95885347,0.00021813,2]
[323141666,1713708646405,-211.44149989,0.00021813,2]
[323141668,1713708646418,-200.05855712,0.00021813,2]
[323141671,1713708646431,-210.23056444,0.00021813,2]
[323141673,1713708646445,-154.84515485,0.00021813,2]
[323141675,1713708646458,-154.84515485,0.00021813,2]
[323141677,1713708646471,-154.84515485,0.00021813,2]
[323141680,1713708646484,-154.84793416,0.00021813,2]
[323141682,1713708646497,-2707.63136498,0.00021813,2]
[323141684,1713708646510,-154.86062544,0.00021813,2]
[323141685,1713708646524,-272.33447526,0.00021813,2]
[323141686,1713708646537,-673.02624515,0.00021813,2]
[323141687,1713708646550,-173.10065825,0.00021813,2]
[323141688,1713708646566,-154.8915759,0.00021813,2]
[323141689,1713708646580,-155.73840481,0.00021813,2]
[323141690,1713708646593,-154.99260465,0.00021813,2]
[323141691,1713708646608,-154.95429644,0.00021813,2]
[323141692,1713708646621,-304.06186205,0.00021813,2]
[323141693,1713708646635,-16344.91890782,0.00021815,2]
[323142510,1713708698881,399.19180428,0.00019715,2]
[323142518,1713708776617,461.140628,0.00019912,2]
[323142519,1713708787058,484.0,0.0002415,35]
[323142520,1713708787274,484.0,0.0002414,35]
[323142521,1713708787939,484.0,0.0002413,35]
[323142522,1713708789171,1558.3399398,0.00019901,2]
[323142524,1713708801711,24900.0,0.00019901,2]
[323142525,1713708915460,-241.42272,0.00020726,2]
[323142526,1713708915491,-300.0,0.00020727,2]
[323142527,1713708915522,-300.0,0.00020727,2]
[323142528,1713708915552,-564.30547091,0.00020727,2]
[323142529,1713708915570,-241.42272,0.00020728,2]
[323142530,1713708915587,-228.00859527,0.00020728,2]
[323142531,1713708915596,-71.99140473,0.00020728,2]
[323142532,1713708915606,-300.0,0.00020728,2]
[323142533,1713708915622,-564.30547091,0.00020728,2]
[323142534,1713708915641,-58.54361818,0.00020728,2]
[323142535,1713709000074,266.12786952,0.00019715,2]
[323142536,1713709144925,339.0,0.00024146,35]
[323142537,1713709145548,339.0,0.00024136,35]
[323142538,1713709147211,339.0,0.00024126,35]
[323142539,1713709283062,230.570314,0.00019699,2]
[323142540,1713709301400,177.41857968,0.00019715,2]
[323142541,1713709312542,14577.4711412,0.00019696,2]
[323142542,1713709505434,237.0,0.00024116,35]
[323142543,1713709507142,237.0,0.00024106,35]
[323142544,1713709507843,237.0,0.00024096,35]
[323142546,1713709553459,500.0,0.00025,30]
[323142547,1713709553972,500.0,0.00025,30]
[323142548,1713709554585,500.0,0.00025,30]
[323142549,1713709555196,500.0,0.00025,30]
[323142550,1713709555858,500.0,0.00025,30]
[323142551,1713709556452,500.0,0.00025,30]
[323142552,1713709557074,500.0,0.00025,30]
[323142553,1713709557705,500.0,0.00025,30]
[323142554,1713709558368,500.0,0.00025,30]
[323142555,1713709558988,500.0,0.00025,30]
[323142556,1713709559639,500.0,0.00025,30]
[323142557,1713709560437,500.0,0.00025,30]
[323142558,1713709560921,500.0,0.00025,30]
[323142559,1713709561489,500.0,0.00025,30]
[323142560,1713709562081,500.0,0.00025,30]
[323142561,1713709562812,500.0,0.00025,30]
[323142562,1713709563401,500.0,0.00025,30]
[323142563,1713709564004,500.0,0.00025,30]
[323142564,1713709564613,500.0,0.00025,30]
[323142565,1713709565306,500.0,0.00025,30]
[323142566,1713709567242,500.0,0.00025,30]
[323142567,1713709567832,500.0,0.00025,30]
[323142568,1713709569253,500.0,0.00025,30]
[323142569,1713709569723,500.0,0.00025,30]
[323142570,1713709570383,500.0,0.00025,30]
[323142571,1713709612690,500.0,0.00025,30]
[323142572,1713709613127,500.0,0.00025,30]
[323142573,1713709613764,500.0,0.00025,30]
[323142574,1713709614359,500.0,0.00025,30]
[323142575,1713709614941,500.0,0.00025,30]
[323142576,1713709615523,500.0,0.00025,30]
[323142577,1713709616160,500.0,0.00025,30]
[323142578,1713709616802,413.0,0.00025,30]
[323142579,1713709747149,230.570314,0.00019458,2]
[323142599,1713709833175,-157.69768027,0.00020444,2]
[323142600,1713709833184,-521.29976744,0.00020445,2]
[323142601,1713709833193,-564.30547091,0.00020445,2]
[323142602,1713709833203,-193.52697819,0.00020445,2]
[323142603,1713709833212,-72533.62668599,0.00020445,2]
[323142604,1713709833221,-361.87683553,0.00020446,2]
[323142605,1713709833230,-31285.28113,0.00020446,2]
[323142606,1713709833239,-469.43131527,0.00020447,2]
[323142607,1713709833248,-7863.87835467,0.00020447,2]
[323142608,1713709833257,-1201.72825929,0.00020448,2]
[323142609,1713709833266,-161.96145842,0.00020448,2]
[323142610,1713709833275,-300.0,0.00020448,2]
[323142611,1713709833285,-300.0,0.00020448,2]
[323142612,1713709833294,-169.27597088,0.00020467,2]
[323142613,1713709833304,-1667.52257095,0.00020569,2]
[323142614,1713709833313,-1348.63977464,0.00020575,2]
[323142615,1713709833323,-155.26693109,0.00020687,2]
[323142616,1713709833332,-1007.74087099,0.00020703,2]
[323142617,1713709833342,-154.8915759,0.00020713,2]
[323142618,1713709833351,-1120.31357752,0.00020722,2]
[323142619,1713709833360,-264.1612953,0.00020726,2]
[323142620,1713709833372,-156.29704415,0.00020731,2]
[323142621,1713709833382,-184.26950846,0.00020731,2]
[323142622,1713709833391,-155.04002095,0.00020731,2]
[323142623,1713709833401,-500.0,0.00020732,2]
[323142624,1713709833410,-500.0,0.00020732,2]
[323142625,1713709833419,-311.68160429,0.00020732,2]
[323142626,1713709833429,-209.13246554,0.00020732,2]
[323142627,1713709833438,-22555.93521126,0.00020733,2]
[323142661,1713709838077,-1577.16491941,0.00020444,2]
[323142663,1713709838086,-1676.83616858,0.00020444,2]
[323142665,1713709838096,-329.5063646,0.00020444,2]
[323142667,1713709838105,-1877.41559284,0.00020444,2]
[323142669,1713709838114,-46001.07480861,0.00020733,2]
[323142671,1713709838124,-150.0,0.0002084,2]
[323142673,1713709838133,-156.88484608,0.00020997,2]
[323142675,1713709838142,-7151.82293204,0.00020999,2]
[323142677,1713709838152,-164.86900124,0.00021,2]
[323142679,1713709838161,-7922.27811258,0.00021,2]
[323142681,1713709838171,-637.48889496,0.00021402,2]
[323142683,1713709838180,-1321.60142009,0.00021813,2]
[323142685,1713709838189,-525.33914729,0.00021813,2]
[323142687,1713709838198,-616.20110095,0.00021813,2]
[323142689,1713709838208,-827.67238152,0.00021813,2]
[323142691,1713709838217,-154.96895669,0.00021813,2]
[323142693,1713709838226,-621.05665713,0.00021814,2]
[323142695,1713709838235,-698.31531816,0.00021814,2]
[323142697,1713709838245,-157.00830309,0.00021814,2]
[323142699,1713709838255,-155.11060091,0.00021815,2]
[323142701,1713709838264,-2610.68105327,0.00021815,2]
[323142702,1713709838274,-167.47944015,0.00021815,2]
[323142704,1713709838283,-155.06222629,0.00021815,2]
[323142706,1713709838292,-155.99590109,0.00021815,2]
[323142708,1713709838301,-200.0,0.00021815,2]
[323142710,1713709838310,-155.0025218,0.00021815,2]
[323142712,1713709838319,-307.57485926,0.00021815,2]
[323142714,1713709838328,-523.26675464,0.00021815,4]
[323142716,1713709838338,-211.41674407,0.00021815,2]
[323142718,1713709838349,-960.86852069,0.00021815,2]
[323142720,1713709838359,-207.47804617,0.00021815,2]
[323142721,1713709838368,-291.4940424,0.00021815,2]
[323142722,1713709838378,-1489.22314453,0.00021815,2]
[323142723,1713709838387,-2584.97974744,0.00021815,2]
[323142725,1713709838397,-264.95638975,0.00021815,7]
[323142727,1713709838407,-155.0309133,0.00021816,2]
[323142728,1713709838416,-44444.0,0.00021817,2]
[323142729,1713709838425,-169.27597088,0.00021817,2]
[323142730,1713709838434,-150.0,0.0002189,2]
[323142731,1713709838443,-417.0,0.00021895,2]
[323142732,1713709838453,-1000.0,0.000219,2]
[323142733,1713709838462,-177.75,0.000219,2]
[323142734,1713709838471,-150.258,0.00021905,2]
[323142735,1713709838480,-8934.76792869,0.00021909,2]
[323142736,1713709838489,-354.53717402,0.00021912,2]
[323142737,1713709838498,-207.7309784,0.00021913,2]
[323142738,1713709838507,-282.26238009,0.00021913,2]
[323142739,1713709838517,-602.37642459,0.00021913,2]
[323142740,1713709838527,-205.67887652,0.00021914,2]
[323142741,1713709838536,-309.6903097,0.00021914,2]
[323142742,1713709838546,-2311.45498559,0.00021914,2]
[323142743,1713709838555,-4000.0,0.00021915,2]
[323142744,1713709838565,-4000.0,0.00021915,2]
[323142745,1713709838574,-4000.0,0.00021915,2]
[323142746,1713709838584,-4000.0,0.00021915,2]
[323142747,1713709838593,-4000.0,0.00021915,2]
[323142748,1713709838603,-4000.0,0.00021915,2]
[323142749,1713709838612,-1969.18914495,0.00021915,2]
[323142750,1713709838623,-2367.46092366,0.00021917,2]
[323142860,1713709846126,-1201.72825929,0.00021916,2]
[323142862,1713709846135,-452.02174071,0.00021916,2]
[323142864,1713709904354,150.0,0.00019815,2]
[323142865,1713709932380,1608.71110442,0.0002,2]
[323142866,1713709932408,702.74388117,0.0002,2]
[323142869,1713710205564,150.0,0.00019815,2]
[323142874,1713710297031,304.68459672,0.00019722,2]
[323142875,1713710353701,280.48426944,0.00019815,2]
[323142876,1713710365728,184.8184251,0.00019978,2]
[323142877,1713710379634,365.33497416,0.00019722,2]
[323142882,1713710498872,164.86900124,0.0002,2]
[323142895,1713710726517,423.3179575,0.00020087,2]
[323142896,1713710748517,523.3412364,0.00020087,2]
[323142897,1713710761213,1000.0,0.00020087,2]
[323142898,1713710777209,1000.0,0.00020087,2]
[323142899,1713710793231,653.70342154,0.00020087,2]
[323142927,1713711032308,-154.84515485,0.00020662,2]
[323142929,1713711032317,-361.87683553,0.00020663,2]
[323142931,1713711032326,-2623.01567159,0.00020663,2]
[323142933,1713711032337,-329.5063646,0.00020664,2]
[323142935,1713711032348,-300.0,0.00020664,2]
[323142937,1713711032357,-300.0,0.00020664,2]
[323142939,1713711032365,-18781.99535655,0.00020665,2]
[323143552,1713711038318,-654.6922453,0.00020665,2]
[323143555,1713711038328,-150.0,0.0002088,2]
[323143559,1713711038339,-162.32683874,0.00021697,2]
[323143563,1713711038348,-2000.0,0.00021717,2]
[323143564,1713711038358,-185.06656054,0.0002178,2]
[323143567,1713711038366,-185.06656054,0.00021799,2]
[323143570,1713711038377,-7922.27811258,0.00021815,2]
[323143574,1713711038387,-156.88484608,0.00021816,2]
[323143577,1713711038397,-7151.82293204,0.00021816,2]
[323143580,1713711038407,-4495.86727839,0.00021817,2]
[323143583,1713711038416,-185.06656054,0.00021817,2]
[323143586,1713711038425,-417.0,0.00021895,2]
[323143589,1713711038434,-150.258,0.00021895,2]
[323143592,1713711038443,-1000.0,0.000219,2]
[323143595,1713711038452,-177.75,0.000219,2]
[323143597,1713711038462,-205.67887652,0.00021914,2]
[323143601,1713711038471,-602.37642459,0.00021914,2]
[323143604,1713711038480,-207.7309784,0.00021914,2]
[323143622,1713711038627,-282.26238009,0.00021914,2]
[323143624,1713711038637,-354.53717402,0.00021914,2]
[323143626,1713711038646,-386.77726006,0.00021914,2]
[323143628,1713711038655,-3340.95615532,0.00021914,2]
[323143630,1713711038664,-264.95638975,0.00021914,7]
[323143632,1713711038674,-167.47944015,0.00021914,2]
[323143634,1713711038685,-1489.22314453,0.00021914,2]
[323143636,1713711038694,-155.99590109,0.00021914,2]
[323143638,1713711038703,-2584.97974744,0.00021914,2]
[323143640,1713711038712,-200.0,0.00021914,2]
[323143642,1713711038722,-155.0025218,0.00021914,2]
[323143644,1713711038731,-211.41674407,0.00021914,2]
[323143646,1713711038741,-291.4940424,0.00021914,2]
[323143648,1713711038750,-155.11060091,0.00021914,2]
[323143650,1713711038759,-155.0309133,0.00021914,2]
[323143652,1713711038768,-523.26675464,0.00021914,4]
[323143654,1713711038777,-157.00830309,0.00021914,2]
[323143656,1713711038786,-960.86852069,0.00021914,2]
[323143658,1713711038796,-307.57485926,0.00021914,2]
[323143660,1713711038806,-207.47804617,0.00021914,2]
[323143662,1713711038815,-155.06222629,0.00021914,2]
[323143664,1713711038824,-698.31531816,0.00021914,2]
[323143666,1713711038833,-827.67238152,0.00021914,2]
[323143668,1713711038842,-616.20110095,0.00021914,2]
[323143670,1713711038853,-525.33914729,0.00021914,2]
[323143672,1713711038862,-621.05665713,0.00021914,2]
[323143674,1713711038872,-154.96895669,0.00021914,2]
[323143676,1713711038881,-1321.60142009,0.00021914,2]
[323143678,1713711038890,-4000.0,0.00021914,2]
[323143681,1713711038900,-4000.0,0.00021914,2]
[323143683,1713711038909,-4000.0,0.00021914,2]
[323143684,1713711038920,-4000.0,0.00021914,2]
[323143686,1713711038929,-4000.0,0.00021914,2]
[323143689,1713711038938,-4000.0,0.00021914,2]
[323143691,1713711038949,-1969.18914495,0.00021914,2]
[323143692,1713711038958,-631.51041401,0.00021915,2]
[323143695,1713711038968,-817.34369156,0.00021915,2]
[323143697,1713711038977,-429.27640029,0.00021915,2]
[323143699,1713711038986,-161.80058345,0.00021915,2]
[323143701,1713711038996,-768.18875681,0.00021915,2]
[323143702,1713711039008,-289.96537505,0.00021915,2]
[323143704,1713711039018,-408.65220964,0.00021915,2]
[323143706,1713711039027,-500.0,0.00021915,2]
[323143709,1713711039036,-500.0,0.00021915,2]
[323143711,1713711039046,-561.48750852,0.00021915,2]
[323143713,1713711039055,-315.37962085,0.00021915,2]
[323143715,1713711039064,-454.92321793,0.00021915,2]
[323143717,1713711039073,-7072.13969613,0.00021916,2]
[323143719,1713711039082,-282.51616578,0.00021916,2]
[323143721,1713711039092,-5870.63944868,0.00021916,2]
[323143723,1713711039103,-31440.04651986,0.00021916,2]
[323143848,1713711040467,-423.3179575,0.00021916,2]
[323144143,1713711043464,-4859.84299656,0.00021916,2]
[323145828,1713711233543,5000.0,0.0002,2]
[323145840,1713711943167,302.0,0.0002,2]
[323145841,1713711944355,302.0,0.0002,2]
[323145858,1713712232472,-329.5063646,0.00020415,2]
[323145860,1713712232483,-499.32,0.00020416,2]
[323145862,1713712232494,-361.87683553,0.00020417,2]
[323145864,1713712232504,-4547.4054348,0.00020426,2]
[323145866,1713712232514,-150.0,0.0002088,2]
[323145867,1713712232524,-300.0,0.00020899,2]
[323145869,1713712232534,-300.0,0.00020899,2]
[323145871,1713712232543,-2000.0,0.000209,2]
[323145873,1713712232553,-2000.0,0.000209,2]
[323145875,1713712232563,-1000.0,0.00021,18]
[323145877,1713712232573,-7922.27811258,0.00021,2]
[323145878,1713712232583,-637.48889496,0.00021348,2]
[323145881,1713712232593,-162.32683874,0.00021697,2]
[323145884,1713712232603,-1567.82256196,0.000218,2]
[323145886,1713712232612,-186.8451329,0.0002181,2]
[323145888,1713712232623,-153.0,0.0002181,2]
[323145890,1713712232633,-153.0,0.0002181,2]
[323145892,1713712232643,-2000.0,0.00021814,2]
[323145894,1713712232654,-185.81291584,0.00021814,2]
[323145896,1713712232663,-7151.82293204,0.00021815,2]
[323145898,1713712232674,-156.88484608,0.00021815,2]
[323145900,1713712232686,-185.81291583,0.00021815,2]
[323145902,1713712232696,-185.81291583,0.00021816,2]
[323145903,1713712232705,-4495.86727839,0.00021817,2]
[323145905,1713712232715,-185.81291583,0.00021817,2]
[323145907,1713712232724,-417.0,0.00021895,2]
[323145909,1713712232734,-1000.0,0.000219,2]
[323145911,1713712232744,-177.75,0.000219,2]
[323145913,1713712232755,-153.0,0.000219,2]
[323145915,1713712232765,-2000.0,0.000219,2]
[323145917,1713712232774,-2000.0,0.000219,2]
[323145919,1713712232784,-8934.76792869,0.00021909,2]
[323145921,1713712232794,-250.18519589,0.00021913,2]
[323145923,1713712232803,-8516.00427169,0.00021913,2]
[323145925,1713712232813,-282.51616578,0.00021914,2]
[323145927,1713712232822,-5870.63944868,0.00021914,2]
[323145929,1713712232832,-7072.13969613,0.00021914,2]
[323145930,1713712232841,-817.34369156,0.00021914,2]
[323145931,1713712232852,-631.51041401,0.00021914,2]
[323145933,1713712232861,-768.18875681,0.00021914,2]
[323145934,1713712232871,-429.27640029,0.00021914,2]
[323145937,1713712232882,-161.80058345,0.00021914,2]
[323145939,1713712232891,-1321.60142009,0.00021914,2]
[323145940,1713712232901,-827.67238152,0.00021914,2]
[323145942,1713712232911,-154.96895669,0.00021914,2]
[323145943,1713712232921,-525.33914729,0.00021914,2]
[323145944,1713712232930,-616.20110095,0.00021914,2]
[323145945,1713712232939,-621.05665713,0.00021914,2]
[323145946,1713712232948,-698.31531816,0.00021914,2]
[323145947,1713712232958,-207.47804617,0.00021914,2]
[323145948,1713712232968,-307.57485926,0.00021914,2]
[323145949,1713712232978,-155.0309133,0.00021914,2]
[323145950,1713712232988,-155.06222629,0.00021914,2]
[323145951,1713712232997,-200.0,0.00021914,2]
[323145952,1713712233007,-157.00830309,0.00021914,2]
[323145953,1713712233016,-155.11060091,0.00021914,2]
[323145954,1713712233026,-2584.97974744,0.00021914,2]
[323145955,1713712233037,-167.47944015,0.00021914,2]
[323145956,1713712233047,-155.0025218,0.00021914,2]
[323145957,1713712233057,-264.95638975,0.00021914,7]
[323145958,1713712233067,-155.99590109,0.00021914,2]
[323145959,1713712233079,-211.41674407,0.00021914,2]
[323145960,1713712233088,-960.86852069,0.00021914,2]
[323145961,1713712233100,-1489.22314453,0.00021914,2]
[323145962,1713712233110,-523.26675464,0.00021914,4]
[323145963,1713712233120,-291.4940424,0.00021914,2]
[323145964,1713712233132,-207.7309784,0.00021914,2]
[323145965,1713712233142,-602.37642459,0.00021914,2]
[323145966,1713712233153,-282.26238009,0.00021914,2]
[323145968,1713712233164,-354.53717402,0.00021914,2]
[323145970,1713712233176,-205.67887652,0.00021914,2]
[323145973,1713712233186,-3340.95615532,0.00021914,2]
[323145974,1713712233196,-154.84515485,0.00021915,2]
[323145977,1713712233206,-1612.50639159,0.00021915,2]
[323145978,1713712233215,-289.96537505,0.00021915,2]
[323145981,1713712233226,-500.0,0.00021915,2]
[323145983,1713712233238,-500.0,0.00021915,2]
[323145985,1713712233249,-315.37962085,0.00021915,2]
[323145987,1713712233258,-408.65220964,0.00021915,2]
[323145989,1713712233268,-393.04125596,0.00021915,2]
[323145991,1713712233278,-4000.0,0.00021915,2]
[323145993,1713712233288,-4000.0,0.00021915,2]
[323145995,1713712233298,-4000.0,0.00021915,2]
[323145997,1713712233307,-218.77366179,0.00021915,2]
[323146000,1713712233324,-2567.52722535,0.00021915,2]
[323146104,1713712238611,-193.52697819,0.00020414,2]
[323146106,1713712238620,-1213.69911286,0.00021915,2]
[323146108,1713712238630,-4000.0,0.00021915,2]
[323146110,1713712238639,-4000.0,0.00021915,2]
[323146112,1713712238648,-1969.18914495,0.00021915,2]
[323146113,1713712238657,-633.39152463,0.00021916,2]
[323146115,1713712238666,-201.23629832,0.00021916,2]
[323146117,1713712238676,-157.19673626,0.00021916,2]
[323146119,1713712238690,-67204.04693929,0.00021916,2]
[323146121,1713712238699,-500.0,0.00021917,2]
[323146123,1713712238708,-500.0,0.00021917,2]
[323146125,1713712238719,-500.0,0.00021917,2]
[323146127,1713712238728,-173.128843,0.00021917,2]
[323146129,1713712238737,-788.46,0.00021917,2]
[323146131,1713712238746,-500.0,0.00021917,2]
[323146133,1713712238758,-500.0,0.00021917,2]
[323146135,1713712238767,-500.0,0.00021917,2]
[323146137,1713712238777,-500.0,0.00021917,2]
[323146139,1713712238787,-725.15,0.00021917,2]
[323146141,1713712238796,-725.15,0.00021917,2]
[323146143,1713712238806,-725.15,0.00021917,2]
[323146145,1713712238815,-725.15,0.00021917,2]
[323146147,1713712238824,-725.15,0.00021917,2]
[323146149,1713712238833,-725.15,0.00021917,2]
[323146151,1713712238842,-725.15,0.00021917,2]
[323146153,1713712238851,-725.15,0.00021917,2]
[323146155,1713712238861,-725.15,0.00021917,2]
[323146157,1713712238871,-725.15,0.00021917,2]
[323146159,1713712238881,-725.15,0.00021917,2]
[323146161,1713712238890,-725.15,0.00021917,2]
[323146163,1713712238899,-725.15,0.00021917,2]
[323146165,1713712238908,-500.0,0.00021917,2]
[323146167,1713712238917,-725.15,0.00021917,2]
[323146169,1713712238926,-725.15,0.00021917,2]
[323146171,1713712238935,-725.15,0.00021917,2]
[323146173,1713712238945,-725.15,0.00021917,2]
[323146175,1713712238954,-725.15,0.00021917,2]
[323146177,1713712238963,-725.15,0.00021917,2]
[323146179,1713712238972,-725.15,0.00021917,2]
[323146181,1713712238981,-725.15,0.00021917,2]
[323146183,1713712238990,-725.15,0.00021917,2]
[323146185,1713712238999,-725.15,0.00021917,2]
[323146187,1713712239008,-725.35589915,0.00021917,2]
[323146189,1713712239017,-193.48740822,0.00021917,2]
[323146191,1713712239027,-500.0,0.00021917,2]
[323146193,1713712239036,-500.0,0.00021917,2]